bitfinex/quotes_SOLUSD_20250517
["timestamp","ask_amount","ask_price","bid_price","bid_amount"]
[1747488775508,142.90386385,166.56,166.5,14.45443927]
[1747488779415,142.90386385,166.56,166.5,8.44869268]
[1747488780191,136.9,166.55,166.5,8.44869268]
[1747488780487,136.9,166.55,166.5,14.45469313]
[1747488780683,136.9,166.55,166.5,8.44869268]
[1747488780987,136.9,166.54,166.5,8.44869268]
[1747488781413,6.00492403,166.53,166.5,8.44869268]
[1747488782604,136.9,166.54,166.5,8.44869268]
[1747488782910,136.9,166.54,166.5,14.45456544]
[1747488783302,136.9,166.54,166.5,14.45456993]
[1747488784015,136.9,166.54,166.5,8.44869268]
[1747488784324,142.90463039,166.54,166.5,8.44869268]
[1747488786004,157.91603906,166.54,166.5,8.44869268]
[1747488786636,155.54964886,166.53,166.5,8.44869268]
[1747488786795,21.22,166.52,166.5,8.44869268]
[1747488787128,136.9,166.51,166.5,8.44869268]
[1747488787496,40.2058453,166.51,166.5,8.44869268]
[1747488787721,43.60758091,166.51,166.5,8.44869268]
[1747488788297,62.25722977,166.51,166.5,6.78209268]
[1747488788604,62.25722977,166.51,166.47,18.006662]
[1747488788605,130.11790732,166.49,166.47,18.006662]
[1747488788809,130.11790732,166.48,166.47,18.006662]
[1747488789291,148.76755618,166.48,166.47,18.006662]
[1747488789491,24.65637639,166.48,166.47,18.006662]
[1747488790304,80.65637639,166.48,166.47,18.006662]
[1747488790621,62.00672753,166.48,166.47,18.006662]
[1747488791007,36.00672753,166.48,166.47,18.006662]
[1747488791417,30.0,166.48,166.47,18.006662]
[1747488792204,30.0,166.48,166.47,24.01375036]
[1747488793104,21.4,166.52,166.47,24.01375036]
[1747488793724,21.4,166.53,166.47,18.006662]
[1747488793912,21.4,166.53,166.47,24.01365629]
[1747488794927,136.9,166.52,166.47,24.01365629]
[1747488795112,136.9,166.52,166.47,18.006662]
[1747488795718,142.90536481,166.52,166.47,17.01218129]
[1747488798332,136.9,166.51,166.47,17.01218129]
[1747488799640,142.90572343,166.51,166.47,17.01218129]
[1747488800330,136.9,166.51,166.47,17.01218129]
[1747488800514,136.9,166.51,166.47,23.01924694]
[1747488801435,136.9,166.51,166.47,17.01218129]
[1747488803338,136.9,166.51,166.47,23.01920202]
[1747488804334,136.9,166.5,166.47,23.01920202]
[1747488808432,136.9,166.5,166.47,17.01218129]
[1747488808823,136.9,166.5,166.47,23.01919638]
[1747488810844,136.9,166.5,166.47,17.01218129]
[1747488811021,142.90603474,166.5,166.47,17.01218129]
[1747488811444,136.9,166.49,166.47,17.01218129]
[1747488811653,136.9,166.48,166.47,17.01218129]
[1747488812654,136.9,166.48,166.47,23.01926965]
[1747488812847,136.9,166.48,166.47,17.01218129]
[1747488813631,6.0056453,166.51,166.47,17.01218129]
[1747488813941,21.01975856,166.51,166.47,17.01218129]
[1747488815152,6.0056453,166.51,166.47,17.01218129]
[1747488815943,27.2656453,166.51,166.47,17.01218129]
[1747488818628,42.27975856,166.51,166.47,17.01218129]
[1747488819850,1.5519,166.5,166.47,17.01218129]
[1747488820736,6.00636674,166.49,166.47,17.01218129]
[1747488823762,6.00611782,166.5,166.47,17.01218129]
[1747488823953,20.98,166.49,166.47,17.01218129]
[1747488825645,20.96,166.5,166.47,17.01218129]
[1747488827063,26.9660986,166.5,166.47,17.01218129]
[1747488828565,20.96,166.5,166.47,17.01218129]
[1747488830152,26.9661238,166.5,166.47,17.01218129]
[1747488831252,136.9,166.49,166.47,17.01218129]
[1747488833045,143.2891,166.49,166.47,17.01218129]
[1747488833355,142.90672753,166.48,166.47,17.01218129]
[1747488835157,187.55637639,166.48,166.47,17.01218129]
[1747488835468,136.89999999,166.45,166.42,5.0]
[1747488835679,178.57999999,166.44,166.42,5.0]
[1747488836976,6.00853211,166.43,166.42,5.0]
[1747488838963,184.58828691,166.44,166.42,5.0]
[1747488839556,178.57999999,166.44,166.42,5.0]
[1747488841364,136.89999999,166.44,166.42,11.00876924]
[1747488841681,20.88,166.47,166.42,11.00876924]
[1747488841682,20.88,166.47,166.44,8.2476]
[1747488841875,41.76,166.5,166.44,34.2476]
[1747488842089,20.9,166.5,166.44,34.2476]
[1747488842392,4.2516541,166.53,166.47,26.0]
[1747488843072,41.76,166.55,166.49,18.64964886]
[1747488843255,41.76,166.55,166.48,26.0]
[1747488843256,6.00322009,166.58,166.48,26.0]
[1747488843463,20.88,166.57,166.49,6.00627403]
[1747488843659,20.88,166.57,166.48,26.0]
[1747488844783,20.88,166.57,166.48,32.0067089]
[1747488845287,6.00384245,166.56,166.48,32.0067089]
[1747488847170,6.00384245,166.56,166.48,26.0]
[1747488847373,21.01344859,166.56,166.45,26.0]
[1747488848090,21.01344859,166.56,166.44,8.2476]
[1747488848468,21.01344859,166.56,166.45,26.0]
[1747488848664,47.01344859,166.56,166.45,26.0]
[1747488849789,47.01344859,166.56,166.45,32.00752703]
[1747488850285,32.00384245,166.56,166.45,32.00752703]
[1747488852186,6.00384245,166.56,166.45,32.00752703]
[1747488852389,6.00456346,166.54,166.45,32.00752703]
[1747488855396,136.89999999,166.53,166.45,32.00752703]
[1747488856195,136.89999999,166.53,166.46,18.64964886]
[1747488857800,136.89999999,166.53,166.47,6.00708836]
[1747488858999,136.89999999,166.53,166.52,26.0]
[1747488859304,4.2516541,166.62,166.52,26.0]
[1747488859305,20.72,166.58,166.52,27.6145]
[1747488860099,20.72,166.58,166.53,6.00492403]
[1747488861098,26.72320506,166.58,166.52,33.61968112]
[1747488862782,26.66276127,166.59,166.52,33.61968112]
[1747488863387,20.66,166.59,166.52,33.61968112]
[1747488864503,26.66294248,166.59,166.52,33.61968112]
[1747488864700,20.66,166.59,166.52,33.61968112]
[1747488864891,26.66283468,166.59,166.52,33.61968112]
[1747488865295,20.66,166.59,166.52,33.61968112]
[1747488865702,26.66283563,166.59,166.52,33.61968112]
[1747488866799,26.66283563,166.59,166.52,27.6145]
[1747488867311,136.89999999,166.58,166.52,27.6145]
[1747488867814,136.89999999,166.58,166.52,33.61975502]
[1747488869009,142.90317367,166.58,166.52,33.61975502]
[1747488870008,142.84170361,166.58,166.52,33.61975502]
[1747488870310,163.38170361,166.58,166.52,33.61975502]
[1747488870891,163.38170361,166.58,166.52,27.6145]
[1747488872512,163.38170361,166.58,166.5,6.0058987]
[1747488872732,163.38170361,166.58,166.5,32.0058987]
[1747488873022,163.38170361,166.58,166.5,6.0058987]
[1747488873206,136.83852993,166.57,166.48,6.00640053]
[1747488873535,136.83852993,166.56,166.48,6.00640053]
[1747488874315,6.00420294,166.55,166.48,6.00640053]
[1747488876021,6.00420294,166.55,166.47,27.6371]
[1747488876708,136.83852993,166.54,166.47,1.6371]
[1747488877105,136.83852993,166.53,166.43,7.7119]
[1747488877314,157.33852993,166.52,166.44,32.00804729]
[1747488877689,157.33852993,166.52,166.47,26.0]
[1747488877895,157.33852993,166.52,166.48,6.00672753]
[1747488879320,30.0,166.51,166.48,6.00672753]
[1747488879623,157.33852993,166.52,166.48,6.00672753]
[1747488880418,20.5,166.52,166.48,6.00672753]
[1747488881500,136.83852993,166.57,166.49,1.6556]
[1747488881699,157.31852993,166.57,166.52,6.00528465]
[1747488882729,163.32218961,166.57,166.51,32.00562979]
[1747488882933,163.32218961,166.57,166.49,27.6556]
[1747488883916,163.32218961,166.57,166.49,33.66187947]
[1747488885212,136.83852993,166.56,166.49,33.66187947]
[1747488886134,136.83852993,166.56,166.53,26.0]
[1747488886829,136.83852993,166.56,166.51,26.0]
[1747488887030,136.83852993,166.56,166.49,33.66187947]
[1747488887457,142.84238005,166.56,166.49,33.66187947]
[1747488887622,142.84238005,166.56,166.45,1.6556]
[1747488887954,136.83852993,166.55,166.45,1.6556]
[1747488888253,6.00456346,166.54,166.47,26.0]
[1747488889340,6.00456346,166.54,166.47,32.00675807]
[1747488891238,136.83852993,166.53,166.47,32.00675807]
[1747488892221,142.84365933,166.53,166.47,26.0]
[1747488892517,157.27852993,166.52,166.47,26.0]
[1747488892717,136.83852993,166.51,166.47,26.0]
[1747488893944,136.83852993,166.51,166.45,27.6556]
[1747488894129,136.83852993,166.51,166.45,1.6556]
[1747488894471,6.006006,166.5,166.45,1.6556]
[1747488894836,6.006006,166.5,166.44,26.0]
[1747488895954,6.006006,166.5,166.42,5.0]
[1747488896158,136.83852993,166.49,166.42,31.0]
[1747488896475,136.83852993,166.49,166.42,37.0086866]
[1747488897343,6.00672753,166.48,166.42,37.0086866]
[1747488897550,136.83852993,166.47,166.42,5.0]
[1747488897737,20.96,166.46,166.42,5.0]
[1747488900355,20.96,166.46,166.42,11.00870144]
[1747488901375,20.96,166.46,166.44,6.00817111]
[1747488901579,157.83852993,166.51,166.44,6.00817111]
[1747488902471,157.83852993,166.51,166.45,18.64964886]
[1747488902778,136.83852993,166.51,166.46,26.0]
[1747488902981,41.46,166.54,166.46,26.0]
[1747488902982,20.44,166.54,166.47,18.64964886]
[1747488903155,136.83852993,166.55,166.47,18.64964886]
[1747488903464,136.83852993,166.55,166.48,6.00672753]
[1747488903772,142.84295798,166.55,166.48,6.00672753]
[1747488903942,142.84295798,166.55,166.47,6.00702541]
[1747488905155,142.84295798,166.55,166.46,32.00742718]
[1747488905658,142.84295798,166.55,166.45,26.0]
[1747488905858,136.83852993,166.54,166.43,7.64030251]
[1747488906065,157.27852993,166.53,166.44,26.0]
[1747488907077,157.27852993,166.53,166.47,6.00708836]
[1747488907969,163.28359381,166.53,166.46,32.00738825]
[1747488910782,157.27852993,166.53,166.46,32.00738825]
[1747488911164,136.83852993,166.53,166.47,18.64964886]
[1747488912056,136.83852993,166.53,166.46,32.00738825]
[1747488914083,136.83852993,166.53,166.46,47.02601134]
[1747488914384,136.83852993,166.53,166.5,26.0]
[1747488915778,136.83852993,166.53,166.51,6.0056453]
[1747488915986,20.92,166.56,166.51,6.0056453]
[1747488916883,136.83852993,166.57,166.51,6.0056453]
[1747488921586,142.84207489,166.57,166.5,33.65332968]
[1747488925689,142.84207489,166.57,166.5,32.00592968]
[1747488927182,142.84238467,166.56,166.5,32.00592968]
[1747488927890,136.83852993,166.56,166.5,32.00592968]
[1747488930185,142.84250711,166.56,166.5,32.00592968]
[1747488930500,142.84250711,166.56,166.5,26.0]
[1747488930708,136.83852993,166.55,166.46,1.6474]
[1747488930898,136.83852993,166.54,166.46,1.6474]
[1747488931679,6.00492403,166.53,166.46,7.65474089]
[1747488931976,26.68492403,166.53,166.46,6.00734089]
[1747488932293,26.68492403,166.53,166.46,32.00734089]
[1747488932706,26.68492403,166.53,166.46,26.0]
[1747488933201,26.68492403,166.53,166.46,32.00736636]
[1747488933683,26.68492403,166.53,166.46,26.0]
[1747488933892,34.70942403,166.53,166.44,26.0]
[1747488934349,20.84,166.52,166.44,26.0]
[1747488934610,136.83852993,166.51,166.44,26.0]
[1747488934776,142.84472149,166.5,166.44,32.00811266]
[1747488935578,136.83852993,166.5,166.44,32.00811266]
[1747488941524,136.83852993,166.5,166.47,26.0]
[1747488942823,136.83852993,166.5,166.48,6.00672753]
[1747488944703,20.6,166.54,166.48,6.00672753]
[1747488946727,20.54,166.54,166.48,6.00672753]
[1747488948029,6.00423886,166.55,166.48,6.00672753]
[1747488948230,136.83852993,166.54,166.48,6.00672753]
[1747488950338,157.31852993,166.54,166.48,6.00672753]
[1747488953229,163.32312778,166.54,166.48,6.00672753]
[1747488953617,163.32312778,166.54,166.47,32.00708468]
[1747488954336,157.31852993,166.54,166.47,32.00708468]
[1747488954839,163.32309721,166.54,166.47,32.00708468]
[1747488955342,157.31852993,166.54,166.47,32.00708468]
[1747488956864,157.31852993,166.54,166.47,47.02480559]
[1747488961738,157.31852993,166.54,166.47,32.00708468]
[1747488966351,136.83852993,166.53,166.47,32.00708468]
[1747488966730,142.843509,166.53,166.47,26.0]
[1747488966931,142.843509,166.53,166.44,6.00817111]
[1747488967129,136.83852993,166.52,166.44,6.00817111]
[1747488967323,6.0154,166.51,166.44,32.00817111]
[1747488967831,6.0154,166.51,166.44,6.00817111]
[1747488968040,6.006006,166.5,166.45,26.0]
[1747488969117,6.006006,166.5,166.42,5.0]
[1747488969314,136.83852993,166.49,166.42,31.0]
[1747488969542,157.17852993,166.48,166.42,5.0]
[1747488970745,157.17852993,166.48,166.42,11.00881646]
[1747488970948,157.17852993,166.48,166.42,5.0]
[1747488971246,6.00708836,166.47,166.42,5.0]
[1747488972228,136.83852993,166.46,166.42,5.0]
[1747488972429,8.1442,166.45,166.42,5.0]
[1747488972642,136.83852993,166.44,166.42,5.0]
[1747488972830,136.83852993,166.43,166.42,5.0]
[1747488973452,142.84706204,166.43,166.42,5.0]
[1747488976059,24.65818097,166.43,166.42,5.0]
[1747488977147,26.0,166.39,166.28,6.01395236]
[1747488977451,177.64,166.38,166.28,32.01395236]
[1747488977837,6.01069904,166.37,166.28,32.01395236]
[1747488978855,21.03744665,166.37,166.28,26.0]
[1747488979223,21.03744665,166.37,166.28,32.01385329]
[1747488979454,6.01069904,166.37,166.28,32.01385329]
[1747488981268,177.7,166.38,166.32,26.0]
[1747488981627,177.72,166.38,166.32,26.0]
[1747488982245,183.73042335,166.38,166.32,26.0]
[1747488982453,183.73042335,166.38,166.3,27.5337]
[1747488983060,183.73042335,166.38,166.32,26.0]
[1747488983229,136.9,166.37,166.3,33.54679465]
[1747488984155,136.9,166.37,166.27,10.28955202]
[1747488984345,138.5367,166.36,166.27,30.2753473]
[1747488984956,138.5367,166.36,166.27,36.2896178]
[1747488985158,6.0114217,166.35,166.27,30.2753473]
[1747488986469,6.0114217,166.35,166.27,36.28962119]
[1747488987143,6.01214453,166.33,166.27,30.2753473]
[1747488987329,157.34,166.32,166.27,4.2753473]
[1747488988659,136.9,166.32,166.27,4.2753473]
[1747488988959,157.42,166.31,166.27,4.2753473]
[1747488989666,6.0132291,166.3,166.27,4.2753473]
[1747488989837,6.0132291,166.3,166.24,26.0]
[1747488990657,163.43291609,166.31,166.24,32.01536997]
[1747488990854,163.43291609,166.31,166.24,47.05386852]
[1747488990855,157.42,166.31,166.24,47.05386852]
[1747488991058,157.42,166.31,166.25,18.64964886]
[1747488991247,157.42,166.31,166.25,24.66214886]
[1747488991447,157.42,166.31,166.26,6.0146758]
[1747488992131,157.42,166.31,166.26,21.05136532]
[1747488992969,157.42,166.31,166.26,6.0146758]
[1747488993161,157.42,166.31,166.27,26.0]
[1747488993371,157.42,166.31,166.26,6.0146758]
[1747488993554,157.42,166.31,166.25,6.0125]
[1747488993555,163.43291956,166.31,166.25,32.01492504]
[1747488993867,136.9,166.3,166.22,1.5225]
[1747488994041,136.9,166.29,166.22,1.5225]
[1747488994240,136.9,166.29,166.24,26.0]
[1747488995036,136.9,166.29,166.24,32.01517689]
[1747488995236,136.9,166.29,166.24,26.0]
[1747488995935,136.9,166.29,166.24,32.01518991]
[1747488999662,142.9135953,166.29,166.24,32.01518991]
[1747488999973,136.9,166.29,166.24,30.51518991]
[1747489000341,142.91360806,166.29,166.24,6.01518991]
[1747489001463,136.9,166.29,166.24,6.01518991]
[1747489001671,136.9,166.29,166.23,6.01576129]
[1747489003962,136.9,166.29,166.24,18.64964886]
[1747489005267,136.9,166.29,166.23,21.05516452]
[1747489005971,136.9,166.29,166.23,19.55516452]
[1747489006666,136.9,166.29,166.24,18.64964886]
[1747489006869,136.9,166.29,166.27,26.0]
[1747489007785,136.9,166.29,166.28,6.01395236]
[1747489008141,136.9,166.29,166.28,24.66360122]
[1747489011367,26.51183997,166.34,166.28,24.66360122]
[1747489011853,26.45183997,166.34,166.28,24.66360122]
[1747489012856,26.45183997,166.34,166.26,32.01451348]
[1747489013047,26.45183997,166.34,166.26,26.0]
[1747489013251,26.45183997,166.34,166.25,26.0]
[1747489013471,26.45183997,166.34,166.24,26.0]
[1747489013670,136.9,166.33,166.24,26.0]
[1747489013870,20.42,166.32,166.24,26.0]
[1747489014345,136.9,166.31,166.24,26.0]
[1747489014969,6.0132291,166.3,166.24,26.0]
[1747489015158,136.9,166.29,166.24,26.0]
[1747489015366,20.48,166.28,166.24,26.0]
[1747489016548,20.48,166.28,166.22,1.5225]
[1747489016776,20.48,166.28,166.22,27.5225]
[1747489017069,6.01431406,166.27,166.22,27.5225]
[1747489017273,6.01431406,166.27,166.22,26.0]
[1747489018971,6.01431406,166.27,166.17,6.0656]
[1747489018972,6.01503759,166.25,166.19,32.01708748]
[1747489019158,136.9,166.26,166.2,26.0]
[1747489019159,142.91477813,166.26,166.2,26.0]
[1747489019551,136.9,166.26,166.2,26.0]
[1747489020558,142.91474598,166.26,166.2,26.0]
[1747489020763,136.9,166.26,166.2,26.0]
[1747489020976,136.9,166.26,166.21,24.66613402]
[1747489021149,136.9,166.26,166.24,26.0]
[1747489021979,136.9,166.26,166.25,26.0]
[1747489022178,136.9,166.32,166.26,44.64964886]
[1747489022978,142.91262571,166.32,166.26,26.0]
[1747489023160,136.9,166.31,166.26,26.0]
[1747489023359,136.9,166.31,166.26,23.5]
[1747489023674,136.9,166.31,166.26,29.51463128]
[1747489024190,136.9,166.31,166.24,24.66504828]
[1747489024886,136.9,166.31,166.23,6.01566236]
[1747489025067,6.0132291,166.3,166.23,6.01566236]
[1747489025268,6.0132291,166.3,166.23,32.01566236]
[1747489025997,142.9129018,166.31,166.23,32.01566236]
[1747489026696,142.9129018,166.31,166.23,31.51566236]
[1747489027174,144.5529018,166.31,166.22,6.01608036]
[1747489027377,136.9,166.3,166.22,6.01608036]
[1747489028367,6.01359071,166.29,166.22,6.01608036]
[1747489028706,136.9,166.28,166.21,26.0]
[1747489028866,20.72,166.27,166.21,32.01638033]
[1747489029065,136.9,166.26,166.21,32.01638033]
[1747489030591,136.9,166.26,166.25,26.0]
[1747489030897,20.72,166.28,166.25,26.0]
[1747489031395,136.9,166.3,166.25,26.0]
[1747489032092,142.91330967,166.3,166.25,26.0]
[1747489032975,136.9,166.3,166.25,32.01503581]
[1747489033171,136.9,166.3,166.26,1.5947]
[1747489033374,58.78758326,166.34,166.3,26.0]
[1747489033375,43.75789747,166.34,166.3,26.0]
[1747489034097,43.75789747,166.34,166.31,6.01286753]
[1747489038705,43.75789747,166.34,166.3,26.0]
[1747489038884,43.75789747,166.34,166.28,6.01395236]
[1747489039908,49.7697226,166.34,166.27,6.01431406]
[1747489041313,43.75789747,166.34,166.27,6.01431406]
[1747489041488,49.76986506,166.34,166.27,6.01431406]
[1747489044228,142.91230041,166.33,166.27,6.01431406]
[1747489045530,136.9,166.33,166.27,6.01431406]
[1747489046229,142.91231356,166.33,166.27,6.01431406]
[1747489046433,136.9,166.33,166.27,6.01431406]
[1747489047128,142.91218231,166.33,166.27,6.01431406]
[1747489047306,136.9,166.32,166.27,6.01431406]
[1747489049211,136.9,166.32,166.27,21.05009922]
[1747489049417,136.9,166.32,166.29,26.0]
[1747489050532,136.9,166.32,166.3,6.0132291]
[1747489054733,136.9,166.32,166.29,26.0]
[1747489056232,136.9,166.32,166.27,6.01419923]
[1747489056412,136.9,166.32,166.27,32.01419923]
[1747489074753,136.9,166.32,166.27,47.04998439]
[1747489075758,136.9,166.32,166.3,26.0]
[1747489076068,41.02,166.36,166.3,26.0]
[1747489076367,41.02,166.36,166.31,6.01286753]
[1747489077271,41.0,166.36,166.31,6.01286753]
[1747489080664,20.66,166.36,166.31,6.01286753]
[1747489080879,40.96,166.36,166.31,6.01286753]
[1747489081978,40.96,166.36,166.31,21.04503637]
[1747489082176,20.3,166.36,166.31,21.04503637]
[1747489083968,136.9,166.37,166.31,21.04503637]
[1747489083969,157.16,166.37,166.31,21.04503637]
[1747489084170,157.16,166.37,166.32,18.64964886]
[1747489084489,136.9,166.37,166.33,47.04250585]
[1747489084668,136.9,166.37,166.33,48.54860585]
[1747489085588,48.40099705,166.42,166.37,26.0]
[1747489085762,68.64099705,166.42,166.37,26.0]
[1747489087399,136.9,166.41,166.33,6.01214453]
[1747489087885,6.00961538,166.4,166.33,6.01214453]
[1747489088785,136.9,166.41,166.33,6.01214453]
[1747489089080,142.90936333,166.41,166.33,6.01214453]
[1747489089267,136.9,166.41,166.33,6.01214453]
[1747489089467,136.9,166.41,166.33,21.04250585]
[1747489090057,142.90933158,166.41,166.33,21.04250585]
[1747489090263,142.90933158,166.41,166.33,6.01214453]
[1747489091693,138.5298,166.4,166.32,6.01238356]
[1747489091868,145.1894,166.4,166.29,1.5061]
[1747489092191,6.01033778,166.38,166.29,6.01359071]
[1747489093589,21.03618223,166.38,166.28,6.01395236]
[1747489095193,136.9,166.37,166.29,26.0]
[1747489095354,20.16,166.36,166.29,26.0]
[1747489095558,136.9,166.35,166.29,26.0]
[1747489096591,136.9,166.35,166.29,32.01328157]
[1747489096997,142.9115832,166.35,166.29,32.01328157]
[1747489097292,136.9,166.35,166.29,32.01328157]
[1747489098178,142.91153053,166.35,166.29,32.01328157]
[1747489098573,136.9,166.35,166.29,32.01328157]
[1747489101185,136.9,166.34,166.29,32.01328157]
[1747489102291,136.9,166.34,166.3,18.64964886]
[1747489104581,136.9,166.34,166.31,6.01286753]
[1747489105911,136.9,166.34,166.31,21.04503637]
[1747489107298,20.12,166.36,166.31,21.04503637]
[1747489113806,20.05769231,166.36,166.31,21.04503637]
[1747489117609,20.05769231,166.36,166.31,6.01286753]
[1747489119212,156.95769231,166.36,166.31,6.01286753]
[1747489121521,162.9687604,166.36,166.31,6.01286753]
[1747489121689,162.9687604,166.36,166.3,6.01315609]
[1747489122397,136.9,166.35,166.3,6.01315609]
[1747489123023,142.9114712,166.35,166.29,26.0]
[1747489123223,142.9114712,166.35,166.27,18.64964886]
[1747489123520,142.9114712,166.35,166.27,44.64964886]
[1747489124491,136.9,166.34,166.27,32.01421614]
[1747489125427,136.9,166.33,166.27,26.0]
[1747489125938,136.9,166.33,166.22,18.64964886]
[1747489126129,136.9,166.32,166.22,18.64964886]
[1747489126305,136.9,166.32,166.24,26.0]
[1747489126640,142.91282284,166.32,166.24,32.01531881]
[1747489127502,181.54964886,166.31,166.18,18.64964886]
[1747489127705,177.24,166.3,166.18,24.66722016]
[1747489127918,1.6076,166.29,166.19,26.0]
[1747489128414,6.01395236,166.28,166.19,32.01702711]
[1747489130422,12.22955236,166.28,166.19,32.01702711]
[1747489131203,6.0146758,166.26,166.19,32.01702711]
[1747489131722,142.91441516,166.27,166.19,32.01702711]
[1747489132300,136.9,166.27,166.2,18.64964886]
[1747489132499,20.32,166.26,166.2,18.64964886]
[1747489132728,20.32,166.26,166.23,26.0]
[1747489133222,136.9,166.27,166.23,26.0]
[1747489133425,136.9,166.27,166.23,32.01568621]
[1747489135128,136.9,166.27,166.22,7.56462429]
[1747489138632,142.91431573,166.27,166.22,6.01602429]
[1747489138923,136.9,166.27,166.22,6.01602429]
[1747489140607,136.9,166.27,166.23,18.64964886]
[1747489142630,136.9,166.27,166.24,6.01539942]
[1747489144034,136.9,166.27,166.22,6.01576599]
[1747489144329,136.9,166.27,166.22,32.01576599]
[1747489144555,142.91433423,166.27,166.22,32.01576599]
[1747489144708,136.9,166.27,166.22,32.01576599]
[1747489145807,142.91442454,166.27,166.22,32.01576599]
[1747489146007,142.91442454,166.27,166.2,32.01651817]
[1747489146220,142.91442454,166.27,166.2,6.01651817]
[1747489146416,142.91442454,166.27,166.21,26.0]
[1747489147041,142.91442454,166.27,166.21,32.0164606]
[1747489148228,142.91442454,166.27,166.19,26.0]
[1747489148538,136.9,166.26,166.19,26.0]
[1747489148733,136.9,166.26,166.2,18.64964886]
[1747489149342,157.36,166.31,166.25,46.19274886]
[1747489150249,157.16,166.35,166.3,26.0]
[1747489150449,157.38,166.35,166.3,26.0]
[1747489152356,157.38,166.35,166.3,32.01290277]
[1747489153161,136.9,166.35,166.3,32.01290277]
[1747489153460,157.44,166.35,166.3,32.01290277]
[1747489160243,157.44,166.35,166.3,26.0]
[1747489160244,163.45161596,166.35,166.3,26.0]
[1747489160850,163.45161596,166.35,166.3,32.01312561]
[1747489161158,157.44,166.35,166.3,32.01312561]
[1747489161567,136.9,166.35,166.31,18.64964886]
[1747489162136,136.9,166.39,166.34,26.0]
[1747489162383,20.46,166.38,166.34,26.0]
[1747489162574,136.9,166.39,166.34,26.0]
[1747489162735,136.9,166.39,166.35,18.64964886]
[1747489162931,37.37193009,166.41,166.35,18.64964886]
[1747489163455,37.37193009,166.41,166.36,6.01106035]
[1747489163975,43.38139982,166.41,166.34,32.01148857]
[1747489164550,43.38139982,166.41,166.34,26.0]
[1747489165251,43.38139982,166.41,166.34,32.0117329]
[1747489166148,43.38139982,166.41,166.34,26.0]
[1747489166371,43.38139982,166.41,166.34,32.01168797]
[1747489167279,136.9,166.4,166.34,32.01168797]
[1747489168074,142.90967568,166.4,166.34,32.01168797]
[1747489168458,142.90967568,166.4,166.34,26.0]
[1747489168665,142.90967568,166.4,166.34,32.01172464]
[1747489168975,136.9,166.4,166.34,32.01172464]
[1747489170488,20.42,166.39,166.34,32.01172464]
[1747489170855,20.42,166.39,166.34,47.04118237]
[1747489171193,157.36,166.4,166.34,47.04118237]
[1747489172166,157.36,166.4,166.34,32.01172464]
[1747489172653,157.36,166.4,166.35,18.64964886]
[1747489172856,136.9,166.4,166.35,18.64964886]
[1747489173077,136.9,166.43,166.35,18.64964886]
[1747489173277,157.34,166.43,166.35,18.64964886]
[1747489173475,157.32,166.43,166.35,18.64964886]
[1747489173681,136.9,166.43,166.38,26.0]
[1747489173884,20.42,166.42,166.38,26.0]
[1747489174570,20.42,166.42,166.39,6.00997656]
[1747489175288,136.9,166.43,166.39,6.00997656]
[1747489175487,157.3,166.43,166.39,6.00997656]
[1747489176579,20.26,166.44,166.39,6.00997656]
[1747489176785,20.38,166.43,166.39,6.00997656]
[1747489177663,20.36,166.43,166.39,6.00997656]
[1747489178372,20.36,166.43,166.38,32.01020351]
[1747489179695,20.34,166.45,166.38,47.03604796]
[1747489181385,26.34781618,166.45,166.38,32.01020351]
[1747489183903,26.34781618,166.45,166.36,18.64964886]
[1747489183904,26.34781618,166.45,166.36,6.01072446]
[1747489184071,26.34781618,166.45,166.36,32.01072446]
[1747489184273,41.36734156,166.45,166.36,32.01072446]
[1747489184581,1.6051,166.44,166.36,26.0]
[1747489184787,1.6051,166.44,166.32,16.58882521]
[1747489184985,136.9,166.43,166.35,26.0]
[1747489185314,6.00925425,166.41,166.35,26.0]
[1747489186092,6.00925425,166.41,166.34,6.01170896]
[1747489186480,6.00925425,166.41,166.34,32.01170896]